bitfinex/quotes_ETHUSD_20241215
["timestamp","ask_amount","ask_price","bid_price","bid_amount"]
[1734272361629,0.0128431,3893.9,3893.6,3.0]
[1734272361976,0.0128431,3893.9,3893.6,3.02567864]
[1734272362265,0.0128431,3893.9,3893.7,0.63956586]
[1734272363173,0.0128431,3893.9,3893.8,0.82727866]
[1734272363491,0.0128431,3893.9,3893.8,4.3516]
[1734272363836,0.0128431,3893.9,3893.8,0.8016]
[1734272365290,0.0128431,3893.9,3893.7,0.63956586]
[1734272365433,0.0128431,3893.9,3893.3,5.56848]
[1734272366142,0.0128431,3893.9,3893.4,2.56843]
[1734272366453,0.0128431,3893.9,3893.7,0.8016]
[1734272371261,0.0128431,3893.9,3893.8,3.0]
[1734272371477,0.0128431,3893.9,3893.8,5.56818]
[1734272371788,0.0128431,3893.9,3893.8,6.205158]
[1734272373253,0.0128431,3893.9,3893.8,6.973558]
[1734272380451,0.0128431,3893.9,3893.6,3.0]
[1734272380637,0.0128431,3893.9,3893.5,0.786]
[1734272381211,0.0128431,3893.9,3893.6,3.02567914]
[1734272381393,0.0128431,3893.9,3893.6,3.0]
[1734272382336,0.0128431,3893.9,3893.7,3.0]
[1734272382627,0.0128431,3893.9,3893.8,0.635431]
[1734272387828,0.0128431,3893.9,3893.5,0.786]
[1734272388028,0.0128431,3893.9,3893.6,0.8862109]
[1734272388927,0.00277113,3893.9,3893.6,0.8862109]
[1734272389127,0.00277113,3893.9,3893.7,0.88654959]
[1734272389303,0.00277113,3893.9,3893.5,1.85471458]
[1734272389509,0.00277113,3893.9,3893.7,3.0]
[1734272389747,0.00277113,3893.9,3893.8,0.88685065]
[1734272389911,0.00277113,3893.9,3893.6,3.64624834]
[1734272389912,0.76957113,3893.9,3893.6,3.64624834]
[1734272390097,0.76957113,3893.9,3893.7,0.88685814]
[1734272390791,0.00277113,3893.9,3893.7,0.88685814]
[1734272390990,0.00277113,3893.9,3893.8,1.89097671]
[1734272391292,0.00277113,3893.9,3893.8,5.77783485]
[1734272393021,0.00277113,3893.9,3893.8,1.44704025]
[1734272393249,0.00277113,3893.9,3893.8,0.88685814]
[1734272393416,0.00277113,3893.9,3893.8,1.33120524]
[1734272393616,0.00277113,3893.9,3893.8,2.21865484]
[1734272394311,0.00277113,3893.9,3893.8,0.88747016]
[1734272394565,0.00277113,3893.9,3893.5,3.0]
[1734272394566,0.00277113,3893.9,3893.7,0.88747016]
[1734272394865,0.00277113,3893.9,3893.4,1.06871458]
[1734272394866,3.32539,3893.8,3893.4,1.06871458]
[1734272395042,0.00277113,3893.9,3892.9,1.06871458]
[1734272395043,0.7572,3893.4,3892.9,1.06871458]
[1734272395349,0.7572,3893.4,3893.0,0.88798461]
[1734272395940,0.7572,3893.4,3892.7,1.06871458]
[1734272395941,2.56846,3893.4,3892.7,1.06871458]
[1734272396253,3.32714,3893.1,3892.5,1.06871458]
[1734272396453,3.32714,3893.1,3892.6,0.88789381]
[1734272396739,1.61908178,3893.9,3892.3,1.06871458]
[1734272396740,2.56871,3893.0,3892.3,1.06871458]
[1734272396919,0.7585,3892.9,3892.3,1.06871458]
[1734272397116,0.7585,3892.8,3892.4,2.22001688]
[1734272397425,3.32737,3892.8,3892.0,1.06871458]
[1734272397626,3.32737,3892.8,3892.1,0.88780984]
[1734272397828,3.32737,3892.8,3891.8,1.06871458]
[1734272398161,3.32737,3892.8,3891.9,0.26764834]
[1734272398653,3.32737,3892.8,3892.0,0.88788959]
[1734272398958,3.32737,3892.8,3891.9,0.26764834]
[1734272399350,0.7585,3892.8,3892.0,0.02569007]
[1734272399660,0.7585,3892.8,3892.0,3.0]
[1734272399861,0.7585,3892.8,3892.1,0.76735729]
[1734272400173,0.7585,3892.8,3892.0,3.0]
[1734272400174,0.7585,3892.8,3891.9,0.26764834]
[1734272400344,0.7585,3893.0,3891.5,1.06871458]
[1734272400676,1.07754043,3893.4,3891.6,2.21777146]
[1734272400677,0.7585,3892.4,3891.6,2.21777146]
[1734272400841,3.32765,3892.4,3891.4,1.06871458]
[1734272401022,2.56879,3892.9,3891.4,1.06871458]
[1734272401224,2.56951,3891.8,3891.4,1.06871458]
[1734272401577,2.56951,3891.8,3890.7,1.06871458]
[1734272401742,2.56951,3891.8,3890.8,2.09534558]
[1734272401921,2.56951,3891.8,3890.8,0.76489975]
[1734272402122,2.56957,3891.7,3890.8,0.76489975]
[1734272402323,2.56957,3891.7,3890.6,1.32719687]
[1734272402525,0.75540838,3891.9,3890.7,0.88628989]
[1734272402783,0.75540838,3891.9,3890.8,0.7678]
[1734272402922,2.56902,3892.6,3891.2,3.0]
[1734272403126,2.56902,3892.6,3891.3,0.7678]
[1734272403384,2.56902,3892.6,3891.4,0.37678]
[1734272403555,0.50820509,3893.2,3891.4,0.37678]
[1734272403773,2.56902,3892.6,3891.3,0.7678]
[1734272404284,0.50820509,3893.2,3891.0,0.7678]
[1734272404285,0.7585,3892.4,3891.0,0.7678]
[1734272404488,2.56877,3893.0,3891.0,0.7678]
[1734272404489,0.7585,3892.0,3891.0,0.7678]
[1734272407032,0.7585,3892.0,3890.8,3.0]
[1734272407231,2.56885,3892.8,3890.7,0.7678]
[1734272407232,2.5695,3891.8,3890.7,0.7678]
[1734272407450,2.5695,3891.8,3890.8,0.65966323]
[1734272407952,0.7585,3891.9,3890.8,0.65966323]
[1734272408152,0.7585,3891.6,3890.6,0.25848229]
[1734272408338,0.7585,3891.6,3890.4,0.7678]
[1734272408529,0.7585,3891.5,3890.1,1.28672585]
[1734272408741,2.56977,3891.4,3890.1,1.28672585]
[1734272408969,0.7585,3891.5,3890.2,0.41488812]
[1734272409194,0.7585,3891.5,3890.2,2.57053]
[1734272409695,3.32822,3891.5,3890.2,2.57053]
[1734272409891,3.32822,3891.5,3889.3,1.88761257]
[1734272409892,2.5699,3891.2,3889.9,2.57073]
[1734272410051,0.7585,3891.1,3889.9,2.57073]
[1734272410396,0.7585,3891.1,3889.6,0.7678]
[1734272410397,3.32849,3891.1,3889.7,2.57084]
[1734272410606,2.56998,3891.1,3889.7,2.904704]
[1734272410740,0.7665,3891.0,3889.7,0.333864]
[1734272410943,0.7665,3891.0,3889.6,0.7678]
[1734272410944,2.57023,3890.7,3889.6,0.7678]
[1734272411141,0.7665,3891.0,3889.2,3.37]
[1734272411591,2.57027,3890.7,3889.2,3.37]
[1734272411798,3.3368,3890.6,3889.3,2.57114]
[1734272411949,3.3368,3890.6,3889.2,0.7988]
[1734272411950,2.57037,3890.5,3889.2,0.7988]
[1734272412146,0.7665,3890.6,3889.3,2.908158]
[1734272412380,0.7665,3890.6,3889.6,3.0]
[1734272413864,0.7665,3890.6,3889.3,0.337008]
[1734272414197,0.7665,3890.6,3889.3,3.337008]
[1734272414617,2.57039,3890.5,3889.3,3.337008]
[1734272414758,0.7665,3890.4,3889.4,0.6706998]
[1734272415256,2.57006,3891.0,3889.4,0.6706998]
[1734272415257,0.755,3890.8,3890.0,2.57069]
[1734272415564,0.7969,3891.1,3890.2,3.0]
[1734272415757,0.7969,3891.1,3890.0,3.0]
[1734272416123,0.7969,3891.1,3890.1,0.63746629]
[1734272416396,0.7969,3891.1,3890.1,3.63746629]
[1734272416598,0.7969,3891.1,3890.2,3.0]
[1734272417789,0.7969,3891.1,3890.3,3.0]
[1734272418302,3.0,3892.3,3890.1,0.63746629]
[1734272418303,0.7969,3891.5,3890.5,0.7782]
[1734272418467,0.7969,3891.5,3891.0,2.57002]
[1734272418882,3.36608,3892.3,3891.1,3.0]
[1734272419105,0.7969,3892.3,3890.5,0.7782]
[1734272419259,0.7969,3892.3,3890.8,3.0]
[1734272419477,0.7969,3892.3,3890.9,0.55959273]
[1734272419677,0.7969,3892.2,3890.7,3.0]
[1734272419855,0.7969,3892.1,3891.0,3.0]
[1734272420520,0.7969,3892.1,3891.1,2.56991]
[1734272420909,0.7969,3892.1,3891.2,2.56987]
[1734272421264,0.7969,3892.1,3891.3,3.0]
[1734272421458,0.7969,3892.1,3891.3,3.556987]
[1734272422064,0.7969,3892.1,3891.3,0.556987]
[1734272422266,0.7969,3892.1,3891.1,0.8216]
[1734272422779,0.7969,3892.1,3891.3,3.0]
[1734272422995,0.7969,3892.1,3891.3,2.56982]
[1734272423621,0.7969,3892.1,3891.1,0.8216]
[1734272423622,0.7969,3892.1,3891.4,0.02569654]
[1734272423916,0.7969,3892.1,3891.1,0.8216]
[1734272423917,0.7969,3892.1,3891.5,2.56967]
[1734272424057,0.7969,3892.1,3891.6,2.826597]
[1734272425163,0.7969,3892.1,3891.8,2.56946]
[1734272425366,0.7938,3893.0,3891.8,2.56946]
[1734272425939,0.7938,3892.9,3891.8,2.56946]
[1734272426475,0.7938,3892.9,3891.6,0.256967]
[1734272426734,0.7938,3892.9,3891.7,4.4042667]
[1734272427876,0.7938,3892.9,3892.0,3.0]
[1734272429112,0.7938,3892.9,3891.7,1.4042667]
[1734272429350,0.7938,3892.9,3891.7,3.0]
[1734272429556,0.7938,3892.8,3891.7,3.0]
[1734272431626,0.7438,3892.8,3891.7,3.0]
[1734272435867,0.7898,3892.7,3891.6,0.256967]
[1734272436936,0.7898,3892.6,3891.7,0.2488]
[1734272437136,0.7898,3892.6,3891.8,0.3505767]
[1734272437676,0.7898,3892.6,3891.8,2.9200667]
[1734272437844,0.7898,3892.6,3891.9,3.0]
[1734272440823,0.7898,3892.6,3891.8,0.3505767]
[1734272442058,0.7898,3892.6,3891.7,0.2488]
[1734272442201,0.8169,3892.5,3891.7,0.2488]
[1734272442934,0.8169,3892.2,3891.7,0.2488]
[1734272448279,2.56927,3892.2,3891.7,0.2488]
[1734272448570,0.8169,3892.1,3891.7,0.2488]
[1734272450944,0.7775,3892.0,3891.7,0.2488]
[1734272451726,0.7775,3891.8,3891.7,0.2488]
[1734272451995,3.347,3891.8,3891.7,0.2488]
[1734272455594,3.8598653,3891.8,3891.7,0.2488]
[1734272460809,5.06826114,3891.8,3891.7,0.2488]
[1734272461012,3.8598653,3891.8,3891.7,0.2488]
[1734272461363,5.0686069,3891.8,3891.7,0.2488]
[1734272461563,3.8598653,3891.8,3891.7,0.2488]
[1734272461786,5.06854565,3891.8,3891.7,0.2488]
[1734272462858,5.06866288,3891.8,3891.7,0.2488]
[1734272464214,3.8598653,3891.8,3891.7,0.2488]
[1734272464413,5.0687281,3891.8,3891.7,0.2488]
[1734272464707,3.8598653,3891.8,3891.7,0.2488]
[1734272465424,6.14624451,3891.8,3891.7,0.2488]
[1734272465861,6.14414538,3891.8,3891.7,0.2488]
[1734272466064,3.8598653,3891.8,3891.7,0.2488]
[1734272467161,4.9353066,3891.8,3891.7,0.2488]
[1734272467360,6.14400117,3891.8,3891.7,0.2488]
[1734272467589,5.06855987,3891.8,3891.7,0.2488]
[1734272467961,3.8598653,3891.8,3891.7,0.2488]
[1734272469209,5.06829886,3891.8,3891.7,0.2488]
[1734272469374,6.14374016,3891.8,3891.7,0.2488]
[1734272469577,5.06829886,3891.8,3891.7,0.2488]
[1734272470566,6.14324977,3891.8,3891.7,0.2488]
[1734272471023,5.06829886,3891.8,3891.7,0.2488]
[1734272471257,3.8598653,3891.8,3891.7,0.2488]
[1734272473858,5.06798402,3891.8,3891.7,0.2488]
[1734272474652,6.14293493,3891.8,3891.7,0.2488]
[1734272475037,5.06798402,3891.8,3891.7,0.2488]
[1734272476369,6.14303199,3891.8,3891.7,0.2488]
[1734272476681,5.06808108,3891.8,3891.7,0.2488]
[1734272476849,3.3716,3890.9,3889.8,0.75]
[1734272477047,3.3716,3890.9,3889.9,1.78739489]
[1734272477252,3.3716,3890.9,3889.9,0.89974334]
[1734272477576,3.3716,3890.9,3889.8,0.75]
[1734272477577,2.57017,3890.8,3889.8,0.75]
[1734272481596,1.31120112,3890.9,3889.8,0.75]
[1734272481597,0.8015,3890.9,3889.8,0.75]
[1734272481759,2.57,3891.1,3890.0,0.75]
[1734272481760,3.3715,3891.1,3890.0,0.75]
[1734272482993,0.55,3891.8,3890.1,2.08126736]
[1734272482994,1.87647897,3891.8,3890.1,2.08126736]
[1734272483149,2.56963,3891.7,3890.4,2.57041]
[1734272483343,2.56963,3891.7,3890.5,3.0]
[1734272483668,2.56963,3891.7,3890.6,0.75]
[1734272484452,0.51464086,3891.5,3890.6,0.75]
[1734272484878,0.8015,3891.8,3890.6,0.75]
[1734272485049,0.8015,3891.8,3890.8,0.75]
[1734272485606,1.87647897,3892.1,3890.8,0.75]
[1734272485787,0.8015,3892.1,3890.8,0.75]
[1734272486032,1.30436853,3892.1,3890.8,0.75]
[1734272486343,1.30436853,3892.1,3891.0,0.75]
[1734272486742,3.87369853,3892.1,3891.0,0.75]
[1734272487547,3.37083,3892.1,3891.0,0.75]
[1734272487746,3.37083,3892.1,3891.0,3.75]
[1734272488110,1.07497897,3892.2,3891.1,0.75]
[1734272488415,1.07497897,3892.3,3891.3,0.75]
[1734272488616,2.28424936,3892.3,3891.3,0.75]
[1734272488831,2.56926,3892.2,3891.3,0.75]
[1734272489406,3.64423897,3892.2,3891.3,0.75]
[1734272489608,2.56926,3892.2,3891.3,0.75]
[1734272491344,3.64423897,3892.2,3891.3,0.75]
[1734272491719,1.20950204,3892.1,3891.3,0.75]
[1734272491920,0.7841,3891.9,3891.0,0.7798]
[1734272492252,2.56958,3891.7,3891.0,0.7798]
[1734272493126,1.85907897,3891.9,3891.0,0.7798]
[1734272493326,0.7841,3891.9,3891.0,0.7798]
[1734272493921,1.07497897,3892.1,3891.0,0.96465146]
[1734272494435,2.28472088,3892.1,3891.0,0.96465146]
[1734272494636,1.20974191,3892.0,3891.0,0.96465146]
[1734272494840,1.07497897,3892.1,3891.0,0.96465146]
[1734272495040,4.8540984,3892.1,3891.0,0.96465146]
[1734272495354,1.20989862,3892.0,3891.0,0.96465146]
[1734272495555,0.50753072,3891.9,3891.2,0.8203]
[1734272496035,3.07698072,3891.9,3891.2,0.8203]
[1734272496239,0.50753072,3891.9,3891.2,0.8203]
[1734272497019,3.07697072,3891.9,3891.2,0.8203]
[1734272498159,0.50753072,3891.9,3891.2,0.8203]
[1734272498470,2.79261531,3891.9,3890.7,1.06871458]
[1734272498673,1.07497897,3891.7,3890.7,0.8203]
[1734272498967,2.28508459,3891.7,3890.7,0.8203]
[1734272499129,2.56976,3891.4,3890.7,0.8203]
[1734272499333,2.56996,3891.2,3890.7,0.8203]
[1734272499556,2.56997,3891.1,3890.7,0.8203]
[1734272500281,2.57017,3890.8,3890.2,0.8203]
[1734272501056,2.57024,3890.7,3890.2,0.8203]
[1734272503736,2.57042,3890.4,3890.2,0.8203]
[1734272503984,2.57036,3890.5,3889.7,0.8203]
[1734272504186,0.8301,3890.6,3889.7,0.8203]
[1734272504386,2.57043,3890.4,3889.7,0.8203]
[1734272504887,2.57027,3890.7,3889.7,1.00920146]
[1734272506158,2.57027,3890.7,3889.8,0.88985398]
[1734272506460,1.07497897,3891.3,3890.1,0.7507]
[1734272506645,2.94796999,3891.5,3890.1,0.7507]
[1734272506646,4.47391897,3891.5,3890.2,1.36002739]
[1734272506845,2.56984,3891.3,3890.4,0.7507]
[1734272507086,2.56984,3891.3,3890.4,1.57868886]
[1734272507880,2.56984,3891.3,3890.5,0.7507]
[1734272508109,4.14625456,3891.6,3890.5,0.7507]
[1734272508282,1.61631065,3891.9,3890.6,0.7507]
[1734272508283,1.07497897,3891.7,3890.6,0.7507]
[1734272508500,1.07497897,3891.7,3890.5,3.0]
[1734272508501,1.07497897,3891.8,3890.8,0.7507]
[1734272508697,2.12493683,3891.9,3890.8,0.7507]
[1734272508698,1.58360515,3891.9,3890.8,0.7507]
[1734272509081,1.07497897,3891.9,3890.8,0.7507]
[1734272509274,2.56942,3892.0,3890.8,0.7507]
[1734272509275,3.64439897,3892.0,3890.8,0.7507]
[1734272509471,3.64439897,3892.0,3891.0,0.7507]
[1734272509997,1.20919474,3891.9,3891.0,0.7507]
[1734272510188,1.07497897,3891.9,3891.0,0.7507]
[1734272510603,2.28418171,3891.9,3891.0,0.7507]
[1734272510915,3.64439897,3892.0,3891.0,0.7507]
[1734272511128,3.64439897,3892.0,3891.0,1.45315029]
[1734272511329,2.56942,3892.0,3891.0,1.45315029]
[1734272511695,3.64439897,3892.0,3891.0,1.45315029]
[1734272512331,1.20915202,3891.9,3891.0,0.7507]
[1734272512647,3.64439897,3892.0,3891.0,0.7507]
[1734272512848,1.20915008,3891.9,3891.0,0.7507]
[1734272513028,3.64439897,3892.0,3891.0,0.7507]
[1734272513194,1.20915887,3891.9,3891.0,0.7507]
[1734272513393,3.64439897,3892.0,3891.0,0.7507]
[1734272513588,1.20914814,3891.9,3891.0,0.7507]
[1734272513878,3.64439897,3892.0,3891.0,0.7507]
[1734272514130,1.07497897,3892.0,3891.0,0.7507]
[1734272514355,1.20912956,3892.0,3891.0,0.7507]
[1734272514491,1.58961983,3892.1,3891.0,0.7507]
[1734272514687,1.20909597,3892.0,3891.0,0.7507]
[1734272514915,1.58961983,3892.1,3891.0,0.7507]
[1734272515112,1.20909606,3892.0,3891.0,0.7507]
[1734272515320,4.15892983,3892.1,3891.0,0.7507]
[1734272515831,3.08395086,3892.1,3891.0,0.7507]
[1734272516040,3.08395086,3892.1,3891.0,0.33465492]
[1734272516241,3.08395086,3892.1,3891.1,0.7851]
[1734272516749,4.15892983,3892.1,3891.1,0.7851]
[1734272517107,1.58961983,3892.1,3891.1,0.7851]
[1734272517645,0.51464086,3892.1,3891.1,0.7851]
[1734272517845,1.07497897,3892.2,3891.3,0.7851]
[1734272518032,1.07497897,3892.3,3891.4,0.7851]
[1734272518853,4.15483648,3892.5,3891.4,0.7851]
[1734272519143,1.20878408,3892.4,3891.4,0.7851]
[1734272519307,4.15483648,3892.5,3891.4,0.7851]
[1734272519507,1.20868313,3892.4,3891.4,0.7851]
[1734272519757,4.15483648,3892.5,3891.4,0.7851]
[1734272519942,3.07985751,3892.5,3891.4,0.7851]
[1734272523569,3.64385897,3892.8,3891.4,3.35486]
[1734272523762,1.20821829,3892.7,3891.6,0.7851]
[1734272523963,3.07329791,3892.6,3891.6,0.7851]
[1734272524160,2.56906,3892.5,3891.6,0.7851]
[1734272526222,0.50430791,3892.6,3891.6,0.7851]
[1734272527467,1.07507334,3892.8,3891.7,0.7851]
[1734272527668,1.07507334,3892.9,3891.9,0.7851]
[1734272527872,3.64382334,3893.0,3891.9,0.7851]
[1734272528114,1.20819909,3892.9,3891.9,0.7851]
[1734272528423,3.64382334,3893.0,3891.9,0.7851]
[1734272528617,0.50980683,3892.8,3891.9,0.7851]
[1734272530016,3.07866683,3892.8,3891.9,0.7851]
[1734272530175,0.50980683,3892.8,3891.9,0.7851]
[1734272532712,1.07507334,3893.1,3891.9,2.56942]
[1734272533008,3.64369334,3893.2,3892.1,0.8195]
[1734272533317,2.56862,3893.2,3892.1,0.8195]
[1734272533906,0.50625626,3893.1,3892.1,0.8195]
[1734272534110,2.56872,3893.0,3892.1,0.8195]
[1734272536969,2.5688,3892.9,3892.1,0.8195]
[1734272537372,0.50625626,3893.1,3892.1,0.8195]
[1734272538300,2.56864,3893.2,3892.1,1.16096118]
[1734272538609,1.88087334,3893.5,3892.2,0.788]
[1734272538778,2.56846,3893.4,3892.2,0.788]
[1734272539377,3.08988158,3893.3,3892.2,0.788]
[1734272541779,2.56837,3893.6,3892.2,0.788]
[1734272541980,2.56835,3893.6,3892.4,0.788]
[1734272542610,0.50712908,3893.4,3892.4,0.788]
[1734272543906,2.56835,3893.6,3892.4,0.788]
[1734272544104,2.56825,3893.7,3892.5,3.35702]
[1734272544405,2.56825,3893.7,3892.5,0.788]
[1734272544727,0.51173495,3893.6,3892.5,0.788]
[1734272545221,0.51173495,3893.6,3892.6,0.788]
[1734272545845,2.56838,3893.5,3892.6,0.788]
[1734272546354,0.51173495,3893.6,3892.6,0.788]
[1734272550348,3.08005495,3893.6,3892.6,0.788]
[1734272552722,2.56844,3893.4,3892.6,0.788]
[1734272558659,2.56831,3893.6,3892.6,0.788]
[1734272559738,2.56839,3893.5,3892.6,0.788]
[1734272561262,2.56845,3893.4,3892.6,0.788]
[1734272563539,0.5261603,3893.6,3892.6,0.788]
[1734272563743,2.56832,3893.6,3892.6,0.788]
[1734272564128,1.07507334,3893.8,3892.6,0.788]
[1734272564327,2.56838,3893.5,3892.6,0.788]
[1734272565266,1.07507334,3893.7,3892.6,0.788]
[1734272565427,2.56845,3893.4,3892.6,0.788]
[1734272568534,2.56832,3893.6,3892.6,0.788]
[1734272568747,2.56832,3893.6,3892.4,2.5691]
[1734272568748,2.56832,3893.6,3892.8,0.8199]
[1734272573659,3.64339334,3893.6,3892.8,0.8199]
[1734272575580,3.77831547,3893.5,3892.8,0.8199]
[1734272575890,2.56839,3893.5,3892.8,0.8199]
[1734272576097,1.07507334,3893.6,3892.8,0.8199]
[1734272576335,1.07507334,3893.4,3892.8,0.8199]
[1734272576515,1.07507334,3893.2,3892.8,0.8199]
[1734272576718,2.56872,3893.0,3892.8,0.8199]
[1734272577106,1.07507334,3893.2,3892.8,0.8199]
[1734272577318,1.07507334,3893.3,3892.8,0.8199]
[1734272577519,2.56859,3893.2,3892.8,0.8199]
[1734272577719,3.64366334,3893.2,3892.8,0.8199]
[1734272578130,2.56859,3893.2,3892.8,0.8199]
[1734272579344,0.7551,3893.1,3892.3,0.8154]
[1734272579568,0.7551,3893.1,3892.4,2.22003763]
[1734272579569,2.56865,3893.1,3892.4,2.22003763]
[1734272579698,3.64372334,3893.1,3892.5,0.8154]
[1734272579893,2.56865,3893.1,3892.5,0.8154]
[1734272580544,1.07507334,3893.2,3892.5,0.8154]
[1734272580711,2.56865,3893.1,3892.5,0.8154]
[1734272580911,2.56875,3893.0,3892.5,0.8154]
[1734272581327,3.64382334,3893.0,3892.5,0.8154]
[1734272581509,2.56875,3893.0,3892.5,0.8154]
[1734272581710,2.90524668,3893.4,3892.5,0.8154]
[1734272581711,3.64365334,3893.2,3892.5,0.8154]
[1734272581900,2.56858,3893.2,3892.7,0.8154]
[1734272582668,3.64365334,3893.2,3892.7,0.8154]
[1734272583051,1.2111614,3893.1,3892.7,0.8154]
[1734272583257,1.21116985,3893.0,3892.7,0.8154]
[1734272583557,1.07507334,3893.1,3892.7,0.8154]
[1734272583720,2.28649652,3893.1,3892.7,0.8154]
[1734272584863,1.21155413,3893.0,3892.7,0.8154]
[1734272585066,1.07507334,3893.1,3892.7,0.8154]
[1734272585245,2.28663081,3893.1,3892.7,0.8154]
[1734272585428,1.07507334,3893.0,3892.7,0.8154]
[1734272585816,1.07507334,3893.1,3892.7,0.8154]
[1734272586253,2.56845,3893.4,3892.8,0.88889639]
[1734272586254,1.07507334,3893.2,3892.8,0.88889639]
[1734272586551,1.07507334,3893.2,3892.7,0.8154]
[1734272586752,1.07507334,3893.2,3892.8,0.88891617]
[1734272586753,2.28659752,3893.2,3892.8,0.88891617]
[1734272586936,1.21152418,3893.1,3892.7,0.8154]
[1734272587254,1.07507334,3893.2,3892.7,0.8154]
[1734272587629,2.28666359,3893.2,3892.7,0.8154]
[1734272587816,1.07507334,3893.3,3892.8,2.22219922]
[1734272588151,3.64352334,3893.4,3892.9,0.88892067]
[1734272588356,2.28658966,3893.3,3892.7,1.88888656]
[1734272588515,2.28658966,3893.3,3892.8,2.22210441]
[1734272588715,2.28658966,3893.3,3892.9,0.88884176]
[1734272588912,2.28658966,3893.3,3892.7,0.8154]
[1734272589258,2.28658966,3893.3,3892.8,2.22207197]
[1734272589552,1.61538968,3893.6,3892.9,4.11088156]
[1734272589553,1.07507334,3893.6,3892.9,4.11088156]
[1734272589754,2.28646422,3893.5,3893.1,0.8154]
[1734272589924,1.07507334,3893.6,3893.1,0.8154]
[1734272590121,2.28647016,3893.6,3893.1,0.8154]
[1734272590363,1.07507334,3893.6,3893.1,0.8154]
[1734272590563,2.28647016,3893.6,3893.1,0.8154]
[1734272590945,1.21139682,3893.5,3893.1,0.8154]
[1734272591143,1.07507334,3893.6,3893.1,0.8154]
[1734272592058,1.07507334,3893.5,3893.1,0.8154]
[1734272592257,1.07507334,3893.6,3893.1,0.8154]
[1734272592633,2.28631108,3893.6,3893.1,0.8154]
[1734272592836,1.21123774,3893.5,3893.1,0.8154]
[1734272593037,1.07507334,3893.6,3893.1,0.8154]
[1734272593238,2.28624786,3893.6,3893.1,0.8154]
[1734272593540,1.21117452,3893.5,3893.1,0.8154]
[1734272593867,1.07507334,3893.6,3893.1,0.8154]
[1734272595056,2.28617847,3893.6,3893.1,0.8154]
[1734272595262,1.61261001,3893.8,3893.1,0.8154]
[1734272595263,1.07507334,3893.7,3893.1,0.8154]
[1734272595454,2.28609956,3893.6,3893.1,0.8154]
[1734272595776,2.13856456,3893.9,3893.1,0.8154]
[1734272595777,1.07507334,3893.7,3893.1,0.8154]
[1734272599499,1.21095161,3893.6,3893.1,0.8154]
[1734272599704,1.07507334,3893.7,3893.1,0.8154]
[1734272600056,2.28580517,3893.6,3893.1,0.8154]
[1734272600256,1.07507334,3893.6,3893.1,0.8154]
[1734272601617,1.07507334,3893.7,3893.1,0.8154]
[1734272601757,2.28575982,3893.6,3893.1,0.8154]
[1734272601957,1.07507334,3893.6,3893.1,0.8154]
[1734272602667,1.07507334,3893.7,3893.1,0.8154]
[1734272602869,2.56865,3893.1,3892.8,0.7972]
[1734272603160,2.28592468,3893.0,3892.3,0.7972]
[1734272603355,2.56886,3892.8,3892.3,0.7972]
[1734272603556,1.21084295,3892.7,3892.3,0.7972]
[1734272603762,1.07507334,3892.7,3892.3,0.7972]
[1734272604171,2.2859341,3892.7,3892.3,0.7972]
[1734272604493,3.64393334,3892.8,3892.3,0.7972]
[1734272604682,1.21062148,3892.7,3892.3,0.7972]
[1734272604864,3.64393334,3892.8,3892.3,0.7972]
[1734272605064,1.21061656,3892.7,3892.3,0.7972]
[1734272605265,3.64393334,3892.8,3892.3,0.7972]
[1734272605455,1.21058718,3892.7,3892.3,0.7972]
[1734272605654,3.64393334,3892.8,3892.3,0.7972]
[1734272606060,1.21040953,3892.7,3892.3,0.7972]
[1734272606263,3.64393334,3892.8,3892.3,0.7972]
[1734272607396,1.21024757,3892.7,3892.3,0.7972]
[1734272607595,3.64393334,3892.8,3892.3,0.7972]
[1734272607891,1.07507334,3892.9,3892.3,0.7972]
[1734272608056,2.28511584,3892.9,3892.3,0.7972]
[1734272608697,3.64378334,3893.0,3892.3,0.7972]
[1734272608860,2.56884,3892.8,3892.3,0.7972]
[1734272611757,1.07507334,3893.0,3892.3,0.7972]
[1734272611961,1.20952722,3893.0,3892.3,0.7972]
[1734272612161,1.07507334,3893.0,3892.3,0.7972]
[1734272612398,1.07507334,3893.1,3892.3,0.7972]
[1734272612601,2.95844668,3893.5,3892.3,0.7972]
[1734272612602,1.07507334,3893.2,3892.3,0.7972]
[1734272612962,1.07507334,3893.3,3892.3,0.7972]
[1734272613260,1.07507334,3893.4,3892.3,0.7972]
[1734272613482,1.07507334,3893.4,3892.2,2.56922]
[1734272613483,2.28444327,3893.4,3892.5,0.8167]
[1734272613687,2.28444327,3893.3,3892.5,0.8167]
[1734272613920,1.07507334,3893.3,3892.5,0.8167]
[1734272614201,1.07507334,3893.4,3892.5,0.8167]
[1734272614440,2.28442005,3893.4,3892.5,0.8167]
[1734272614585,3.64347334,3893.5,3892.5,0.8167]
[1734272614766,1.20931239,3893.4,3892.5,0.3722562]
[1734272615112,3.64347334,3893.5,3892.6,0.8167]
[1734272615410,1.20932466,3893.4,3892.6,0.8167]
[1734272615610,3.64347334,3893.5,3892.6,0.8167]
[1734272615819,2.5684,3893.5,3892.6,0.8167]
[1734272616184,1.57860318,3893.6,3892.6,0.96925982]
[1734272617734,4.14691318,3893.6,3892.6,0.96925982]
[1734272617939,1.07507334,3893.6,3892.7,0.7864]
[1734272618107,1.07784447,3893.9,3892.9,0.7864]
[1734272618309,1.07784447,3893.9,3893.0,0.7864]
[1734272618600,1.58974934,3893.9,3893.0,0.7864]
[1734272619237,4.15787934,3893.9,3893.0,0.7864]
[1734272622138,3.082806,3893.9,3893.0,0.7864]
[1734272627556,1.20890592,3893.8,3893.0,0.7864]
[1734272627729,4.15787934,3893.9,3893.0,0.7864]
[1734272627892,3.082806,3893.9,3893.0,0.7864]
[1734272628092,4.15787934,3893.9,3893.0,0.7864]
[1734272628653,3.082806,3893.9,3893.0,0.7864]
[1734272629382,4.15787934,3893.9,3893.0,0.7864]
[1734272629790,3.082806,3893.9,3893.0,0.7864]
[1734272632231,0.00277113,3893.9,3893.0,0.7864]